bitfinex/quotes_ETHUSD_20250220
["timestamp","ask_amount","ask_price","bid_price","bid_amount"]
[1740024543971,5.851433,2747.2,2747.1,0.0102171]
[1740024544964,9.491493,2747.2,2747.1,0.0102171]
[1740024545208,10.81722159,2747.2,2747.1,0.0102171]
[1740024546694,9.491493,2747.2,2747.1,0.0102171]
[1740024547213,5.851433,2747.2,2747.1,0.0102171]
[1740024547885,9.491493,2747.2,2747.1,0.0102171]
[1740024551892,10.81722159,2747.2,2747.1,0.0102171]
[1740024552099,12.26294475,2747.2,2747.1,0.0102171]
[1740024552484,11.46064475,2747.2,2747.1,0.0102171]
[1740024552684,12.21654475,2747.2,2747.1,0.0102171]
[1740024555284,10.77082159,2747.2,2747.1,0.0102171]
[1740024555483,9.445093,2747.2,2747.1,0.0102171]
[1740024556187,5.049133,2747.2,2747.1,0.7707171]
[1740024556611,0.7642,2747.6,2747.1,0.7707171]
[1740024556612,5.049133,2747.5,2747.1,0.7707171]
[1740024557403,5.049133,2747.5,2747.1,1.57583981]
[1740024557814,8.688823,2747.5,2747.1,1.57583981]
[1740024557987,8.688823,2747.5,2747.1,0.7707171]
[1740024558187,5.049133,2747.5,2747.1,0.7707171]
[1740024559445,5.049133,2747.5,2747.1,4.4108971]
[1740024561131,8.688823,2747.5,2747.1,0.7707171]
[1740024561839,8.688823,2747.5,2747.1,0.0102171]
[1740024562796,5.049133,2747.5,2747.1,0.0102171]
[1740024564365,8.688823,2747.5,2747.1,0.0102171]
[1740024566147,5.049133,2747.5,2747.1,3.6502971]
[1740024568964,5.049133,2747.5,2747.1,0.0102171]
[1740024570066,8.688823,2747.5,2747.1,0.0102171]
[1740024574180,5.049133,2747.5,2747.1,3.6504071]
[1740024578884,8.688833,2747.5,2747.1,0.0102171]
[1740024579060,10.13063115,2747.5,2747.1,0.0102171]
[1740024580503,0.8055,2747.4,2747.1,0.0102171]
[1740024583200,5.049133,2747.5,2747.1,3.6503371]
[1740024586712,5.049133,2747.5,2747.2,3.63998]
[1740024587678,5.049133,2747.5,2747.3,4.42052]
[1740024588024,0.50618033,2748.6,2747.6,3.63944]
[1740024588025,0.8055,2748.0,2747.6,3.63944]
[1740024588723,3.0,2748.1,2747.7,0.7807]
[1740024589178,3.63903,2748.0,2747.4,0.8077]
[1740024589373,0.79645085,2747.9,2747.4,4.44747]
[1740024589678,3.63903,2748.0,2747.4,4.44747]
[1740024592608,0.7729,2747.9,2747.4,4.44747]
[1740024593419,5.822033,2747.9,2747.4,4.44747]
[1740024593615,5.822033,2747.9,2747.4,0.8077]
[1740024594217,9.461223,2747.9,2747.3,3.63986]
[1740024594515,7.4320583,2747.9,2747.3,3.63986]
[1740024595019,7.4320583,2747.9,2747.3,3.63985]
[1740024596022,11.0712883,2747.9,2747.2,0.7902]
[1740024596220,0.8258,2747.8,2747.2,4.43022]
[1740024597854,0.8258,2747.8,2747.3,3.63989]
[1740024598013,4.46514,2747.8,2747.2,4.43026]
[1740024598344,5.57756983,2747.8,2747.2,4.43026]
[1740024599220,10.62670283,2747.8,2747.2,4.43026]
[1740024599848,6.98736283,2747.8,2747.3,3.63986]
[1740024601247,5.874933,2747.8,2747.3,3.63986]
[1740024602051,5.874933,2747.8,2747.2,4.43025]
[1740024602351,5.874933,2747.8,2747.3,3.63981]
[1740024603620,9.514313,2747.8,2747.2,4.43025]
[1740024603843,9.514313,2747.8,2747.3,3.6399]
[1740024605473,9.514313,2747.8,2747.2,4.43016]
[1740024606979,5.874933,2747.8,2747.3,3.63984]
[1740024608384,5.874933,2747.8,2747.2,3.63996]
[1740024608580,0.7901,2747.6,2747.1,7.2905971]
[1740024608780,0.7901,2747.6,2747.1,3.6504071]
[1740024608949,0.7901,2747.6,2747.2,3.64006]
[1740024609154,0.7901,2747.6,2747.1,7.2905171]
[1740024609485,0.7901,2747.6,2747.1,7.2904371]
[1740024609785,0.7901,2747.6,2747.1,3.6503271]
[1740024609944,0.7901,2747.6,2747.2,3.64003]
[1740024611887,0.7901,2747.6,2747.4,3.6398]
[1740024612600,5.049133,2747.8,2747.4,3.6398]
[1740024612802,5.049133,2747.8,2747.6,3.63951]
[1740024613424,5.049133,2747.8,2747.7,4.949]
[1740024613721,5.049133,2747.8,2747.7,6.2740809]
[1740024615129,5.049133,2747.8,2747.7,6.50152373]
[1740024616284,5.049133,2747.8,2747.7,6.76252373]
[1740024616604,5.049133,2747.8,2747.7,5.43744283]
[1740024616771,5.049133,2747.8,2747.7,6.42552721]
[1740024616974,5.049133,2748.6,2748.1,3.63879]
[1740024617279,5.049133,2748.6,2748.3,3.63851]
[1740024617480,0.7774,2748.9,2748.5,3.63823]
[1740024617798,0.7774,2748.9,2748.3,3.63853]
[1740024618903,0.7774,2748.9,2748.1,0.55]
[1740024619105,0.7774,2748.7,2748.1,0.55]
[1740024619268,0.7774,2748.6,2748.1,0.55]
[1740024619497,1.582758,2748.6,2748.1,0.55]
[1740024619695,1.582758,2748.6,2748.1,4.18884]
[1740024619897,1.582758,2748.6,2748.2,3.63873]
[1740024620137,0.7774,2748.6,2748.2,3.63873]
[1740024620322,0.7774,2748.6,2748.1,4.18884]
[1740024621842,0.7774,2748.6,2748.2,3.63872]
[1740024622735,0.7774,2748.6,2748.3,3.63858]
[1740024623350,0.7774,2748.6,2748.1,7.82761]
[1740024624357,0.7774,2748.6,2748.2,3.63874]
[1740024625255,0.7774,2748.6,2748.3,3.6386]
[1740024625553,0.7774,2748.6,2748.1,7.82756]
[1740024625940,0.7774,2748.6,2748.2,3.63872]
[1740024628554,0.7774,2748.6,2748.2,3.63874]
[1740024633421,0.7774,2748.6,2748.2,7.2774]
[1740024633755,0.7774,2748.6,2748.2,3.63866]
[1740024634352,0.7774,2748.6,2748.2,7.27732]
[1740024634666,0.7774,2748.6,2748.3,3.63858]
[1740024635359,0.7774,2748.6,2748.2,3.63866]
[1740024638285,5.875733,2748.8,2748.3,4.18861]
[1740024638462,0.8107,2749.1,2748.8,3.63787]
[1740024638634,0.8107,2749.1,2748.7,3.63808]
[1740024638973,2.13452609,2749.1,2748.6,0.55]
[1740024639480,1.32382609,2748.9,2748.6,0.55]
[1740024639670,1.32382609,2748.9,2748.4,4.44754]
[1740024639875,1.32382609,2748.9,2748.4,5.2980346]
[1740024640038,1.32382609,2748.9,2748.5,4.18824]
[1740024643253,2.13452609,2749.1,2748.5,4.18824]
[1740024643649,2.13452609,2749.1,2748.7,3.63804]
[1740024643853,0.8107,2749.1,2748.7,3.63804]
[1740024644052,0.8107,2749.1,2748.7,4.056844]
[1740024644261,0.8107,2749.1,2748.8,3.63787]
[1740024647365,0.8107,2749.1,2748.8,7.27574]
[1740024648061,0.8107,2749.1,2748.9,3.6378]
[1740024649271,5.049133,2749.2,2748.9,3.6378]
[1740024649478,5.049133,2749.2,2748.9,7.27545]
[1740024649792,2.15532609,2749.3,2748.9,0.55]
[1740024650486,2.15532609,2749.3,2748.9,4.1877]
[1740024653893,2.15532609,2749.3,2748.9,0.55]
[1740024654515,2.15532609,2749.3,2748.9,4.18781]
[1740024654708,1.32382609,2749.1,2748.6,0.765]
[1740024654876,0.7596,2749.0,2748.7,3.63807]
[1740024655499,0.7596,2749.0,2748.5,3.63827]
[1740024655676,4.39729,2749.0,2748.6,0.75027136]
[1740024656000,4.39729,2749.0,2748.6,0.49027136]
[1740024656221,4.39729,2749.0,2748.2,1.241166]
[1740024656222,0.7608,2748.8,2748.2,1.241166]
[1740024656364,1.32382609,2748.7,2748.1,3.89876]
[1740024656693,1.32382609,2748.7,2748.2,0.753772]
[1740024657286,1.32382609,2748.7,2748.2,4.392432]
[1740024657483,1.32382609,2748.7,2748.2,4.61967454]
[1740024657991,5.809933,2748.8,2748.3,3.63853]
[1740024658378,0.7565,2748.6,2748.1,6.6388]
[1740024658763,0.7565,2748.6,2748.2,3.63866]
[1740024658963,0.7565,2748.6,2748.2,4.302516]
[1740024659897,0.7565,2748.6,2748.1,3.0]
[1740024659898,1.32382609,2748.5,2748.1,0.55]
[1740024660069,4.39499,2748.4,2747.8,3.63922]
[1740024660479,4.39499,2748.4,2747.9,0.22735682]
[1740024660811,0.7565,2748.4,2747.9,3.86646682]
[1740024661116,0.7565,2748.4,2748.0,4.02554668]
[1740024661412,0.7565,2748.4,2748.0,0.38664668]
[1740024661611,0.7565,2748.4,2747.9,3.86646682]
[1740024662198,0.7565,2748.4,2747.9,3.63911]
[1740024662592,0.7565,2748.4,2748.0,3.63896]
[1740024663300,0.7863,2748.8,2748.1,0.55]
[1740024663626,0.7863,2748.8,2748.4,0.55]
[1740024664079,0.7863,2748.8,2748.4,4.18844]
[1740024664699,1.32382609,2749.6,2748.6,3.63818]
[1740024664700,0.7863,2749.0,2748.6,3.63818]
[1740024665316,1.32382609,2748.9,2748.4,4.18844]
[1740024665618,1.32382609,2748.9,2748.4,5.06956126]
[1740024666324,0.7863,2749.0,2748.6,3.63816]
[1740024666681,0.7863,2749.0,2748.6,3.63811]
[1740024666882,0.7863,2749.0,2748.7,3.63806]
[1740024667108,0.7863,2749.0,2748.6,3.63811]
[1740024667417,0.7863,2749.0,2748.7,0.363811]
[1740024667648,0.7863,2749.0,2748.6,3.63811]
[1740024668250,0.7885,2749.3,2748.8,3.63787]
[1740024668454,0.7885,2749.3,2748.7,4.46745]
[1740024668599,0.7885,2749.3,2748.7,0.55]
[1740024668804,0.7885,2749.3,2748.8,3.63792]
[1740024671123,4.4258,2749.3,2748.7,0.55]
[1740024672136,4.4258,2749.3,2748.7,4.18804]
[1740024672298,4.4258,2749.3,2748.7,5.079594]
[1740024673157,4.4258,2749.3,2748.7,1.441554]
[1740024673158,3.63749,2749.2,2748.7,1.441554]
[1740024673439,0.8019,2749.0,2748.5,0.26]
[1740024673734,0.8019,2749.0,2748.5,0.81]
[1740024673938,0.8019,2749.0,2748.6,4.41258]
[1740024678152,0.8019,2749.0,2748.6,0.7744]
[1740024678341,0.8019,2749.0,2748.6,3.63814]
[1740024680821,0.8019,2749.0,2748.6,7.27627]
[1740024681024,0.8019,2749.0,2748.6,8.164967]
[1740024681353,0.8019,2749.0,2748.6,0.888697]
[1740024681565,0.8019,2749.0,2748.5,4.44827]
[1740024681722,0.8019,2749.0,2748.6,3.63813]
[1740024682854,0.8019,2749.0,2748.5,4.44827]
[1740024683058,4.43959,2749.0,2748.5,0.81]
[1740024683459,0.8019,2749.0,2748.5,4.44833]
[1740024683663,4.445475,2749.0,2748.2,0.7831]
[1740024683960,0.8203,2748.7,2747.9,4.45966]
[1740024684263,0.8203,2748.5,2748.0,0.26]
[1740024684770,0.8203,2748.5,2748.0,0.48688103]
[1740024684927,0.8203,2748.5,2748.1,3.63886]
[1740024685129,0.8203,2748.5,2748.2,3.63872]
[1740024686144,0.8203,2748.5,2748.0,0.26]
[1740024687369,0.8203,2748.5,2748.1,3.63885]
[1740024688660,0.8203,2748.5,2748.3,3.63861]
[1740024688824,0.8098,2749.0,2748.3,3.63861]
[1740024689029,0.8098,2749.0,2748.5,3.63834]
[1740024690362,4.44759,2749.0,2748.4,3.63839]
[1740024691065,4.44759,2749.0,2748.5,3.63834]
[1740024692169,0.8098,2749.0,2748.5,3.63834]
[1740024692346,0.8098,2749.0,2748.5,4.366029]
[1740024692947,0.8098,2749.0,2748.5,0.727689]
[1740024693134,4.4475,2749.0,2748.4,0.55]
[1740024693339,4.4475,2749.0,2748.4,4.18845]
[1740024693539,0.8098,2749.0,2748.5,3.63833]
[1740024694866,0.8098,2749.0,2748.5,4.46563]
[1740024695072,0.8098,2749.0,2748.7,3.638]
[1740024695381,0.8098,2749.0,2748.6,1.051563]
[1740024695543,0.8098,2749.0,2748.6,0.55]
[1740024695875,0.8098,2749.0,2748.3,3.63852]
[1740024696042,4.44749,2749.0,2748.3,3.6385]
[1740024696239,4.44749,2749.0,2748.4,0.55]
[1740024696458,4.44749,2749.0,2748.4,4.18846]
[1740024696970,0.8098,2749.0,2748.5,3.63831]
[1740024697271,4.44751,2749.0,2748.4,0.55]
[1740024697576,4.44751,2749.0,2748.4,4.18836]
[1740024698478,4.44751,2749.0,2748.4,5.09797585]
[1740024698948,4.44751,2749.0,2748.5,3.63828]
[1740024700578,4.44751,2749.0,2748.4,4.18836]
[1740024704485,4.44751,2749.0,2748.3,0.55]
[1740024704690,1.32420193,2748.9,2748.3,4.7252265]
[1740024705467,0.7988,2748.8,2748.3,4.7252265]
[1740024706386,0.7988,2748.8,2748.5,3.63824]
[1740024706966,0.7988,2748.8,2748.6,3.63814]
[1740024707396,0.7988,2748.8,2748.7,3.63808]
[1740024707569,0.7988,2748.8,2748.5,7.27649]
[1740024707777,0.7641,2749.0,2748.6,4.365739]
[1740024708062,0.7641,2749.0,2748.7,3.63806]
[1740024709691,0.7641,2749.0,2748.6,4.365769]
[1740024710260,0.7641,2749.0,2748.6,3.63812]
[1740024710483,0.7641,2749.0,2748.6,0.55]
[1740024710666,0.7641,2749.0,2748.5,3.63824]
[1740024711293,4.4018,2749.0,2748.4,0.55]
[1740024711674,4.4018,2749.0,2748.4,4.18844]
[1740024712390,0.7641,2749.0,2748.4,4.18844]
[1740024712606,0.7641,2749.0,2748.5,3.63831]
[1740024713059,0.7641,2749.0,2748.6,3.6382]
[1740024713254,0.7641,2749.0,2748.5,3.63831]
[1740024713255,0.7641,2749.0,2748.5,7.27657]
[1740024713473,0.7641,2749.0,2748.5,3.63826]
[1740024713775,0.7641,2749.0,2748.6,3.63813]
[1740024714817,0.7641,2749.0,2748.5,3.63826]
[1740024714974,0.7641,2749.0,2748.7,3.638]
[1740024719017,0.7641,2749.0,2748.8,3.63785]
[1740024719518,0.7641,2749.0,2748.7,3.63799]
[1740024719981,0.7641,2749.0,2748.7,7.27599]
[1740024720186,0.7641,2749.0,2748.7,3.63799]
[1740024720490,0.7641,2749.0,2748.8,3.6379]
[1740024720894,0.7641,2749.0,2748.7,0.49008787]
[1740024720895,0.7641,2749.0,2748.7,3.63807]
[1740024721323,0.7641,2749.0,2748.6,4.4286]
[1740024721524,0.7641,2749.0,2748.8,3.63787]
[1740024721725,0.7641,2749.0,2748.8,3.63783]
[1740024722417,0.7641,2749.0,2748.7,3.63808]
[1740024722629,0.7641,2749.0,2748.7,4.49200387]
[1740024722924,0.7641,2749.0,2748.7,8.12999387]
[1740024723626,0.7641,2749.0,2748.7,4.49191387]
[1740024723826,0.7641,2749.0,2748.7,8.12990387]
[1740024724025,0.7641,2749.0,2748.7,8.12991387]
[1740024724226,0.7641,2749.0,2748.7,4.49191387]
[1740024724927,0.7641,2749.0,2748.7,8.12991387]
[1740024725533,0.7641,2749.0,2748.8,3.6379]
[1740024726123,0.7641,2749.0,2748.7,4.49191387]
[1740024726609,0.7641,2749.0,2748.9,3.63781]
[1740024726808,0.7641,2749.0,2748.7,8.12990387]
[1740024726996,0.7641,2749.0,2748.8,0.89203039]
[1740024728227,0.7641,2749.0,2748.7,7.27598]
[1740024728535,0.7641,2749.0,2748.7,3.63799]
[1740024729896,0.7641,2749.0,2748.8,3.63783]
[1740024730429,0.7641,2749.0,2748.7,3.63804]
[1740024730931,0.7641,2749.0,2748.6,3.63811]
[1740024731227,0.7641,2749.0,2748.7,3.63803]
[1740024734133,0.7641,2749.0,2748.5,4.11074865]
[1740024734134,0.7641,2749.0,2748.5,0.47248865]
[1740024734323,1.32396251,2748.8,2748.2,0.788]
[1740024734518,0.7875,2748.7,2748.2,3.63863]
[1740024735397,0.7875,2748.5,2748.1,3.6388]
[1740024735631,6.1775,2748.5,2748.2,3.63874]
[1740024735935,6.1775,2748.5,2748.3,3.6386]
[1740024738009,6.1775,2748.5,2747.9,0.788]
[1740024738212,5.39,2748.5,2748.4,3.63848]
[1740024738508,5.39,2748.5,2748.4,4.996459]
[1740024738713,0.8026,2748.8,2748.5,3.63822]
[1740024739037,0.8026,2748.8,2748.6,3.63816]
[1740024740235,0.8026,2748.8,2748.7,3.63808]
[1740024740539,0.8026,2748.8,2748.7,4.365704]
[1740024740744,0.8026,2748.8,2748.7,0.727624]
[1740024740955,0.8026,2748.8,2748.6,3.63811]
[1740024742102,0.8026,2748.8,2748.6,7.27624]
[1740024742420,0.8026,2748.8,2748.6,3.63811]
[1740024743360,0.8026,2748.8,2748.7,3.63808]
[1740024743728,6.71396251,2749.0,2748.6,3.63811]
[1740024743729,7.51366251,2749.0,2748.8,3.63794]
[1740024745211,7.51366251,2749.0,2748.9,3.63781]
[1740024745461,7.51366251,2749.0,2748.8,3.63794]
[1740024745757,6.1897,2749.0,2748.8,3.63794]
[1740024747044,6.1897,2749.0,2748.8,3.63787]
[1740024747556,7.51366251,2749.0,2748.8,3.63787]
[1740024749050,5.39,2749.0,2748.8,3.63787]
[1740024750663,6.1937,2749.1,2748.8,3.63787]
[1740024750983,0.8331,2749.8,2749.2,0.55]
[1740024751131,5.39,2749.9,2749.8,3.63662]
[1740024751333,5.39,2750.2,2750.0,3.63636]
[1740024751561,0.795,2750.4,2750.0,3.63636]
[1740024751562,5.39,2750.4,2750.3,3.63596]
[1740024752553,5.39,2750.4,2750.1,3.6361]
[1740024753374,5.39,2750.4,2750.2,3.63609]
[1740024754766,5.39,2750.4,2749.9,3.63644]
[1740024754962,5.39,2750.4,2749.9,4.363757]
[1740024755140,5.39,2750.4,2750.1,3.63623]
[1740024756545,5.39,2750.5,2750.1,3.63623]
[1740024756743,5.39,2750.5,2750.1,3.63612]
[1740024758979,5.39,2750.5,2750.2,3.63608]
[1740024759270,5.39,2750.5,2750.3,3.63584]
[1740024760550,5.39,2750.5,2750.2,0.72722]
[1740024761369,5.39,2750.5,2750.1,4.46721]
[1740024761531,9.0257,2750.5,2749.9,0.26]
[1740024761738,5.39,2750.5,2750.0,3.63633]
[1740024762052,5.39,2750.5,2750.1,3.63622]
[1740024762668,5.39,2750.5,2750.1,7.27234]
[1740024763247,5.39,2750.5,2750.1,3.63612]
[1740024763862,5.39,2750.5,2750.2,3.63606]
[1740024764036,5.39,2750.5,2750.0,4.46674]
[1740024764473,9.02572,2750.5,2750.0,0.83039]
[1740024764974,9.02572,2750.5,2749.9,3.89645]
[1740024765158,5.39,2750.5,2749.9,3.89645]
[1740024765338,5.39,2750.5,2750.1,3.63619]
[1740024765539,5.39,2750.5,2749.9,7.53283]
[1740024765766,5.39,2750.5,2749.9,3.89638]
[1740024766279,5.39,2750.5,2749.9,7.53279]
[1740024766450,9.0257,2750.5,2749.9,3.63638]
[1740024766654,5.39,2750.5,2750.0,3.63634]
[1740024767279,9.02573,2750.5,2749.9,0.55]
[1740024767449,0.8126,2750.2,2749.6,4.38768]
[1740024767655,0.8126,2750.2,2749.6,0.26]
[1740024767854,0.8126,2750.2,2749.7,0.55]
[1740024768373,0.8126,2750.2,2749.7,4.18673]
[1740024768580,6.2026,2750.2,2749.7,4.18673]
[1740024769476,6.2026,2750.2,2749.7,0.55]
[1740024769644,9.8387,2750.2,2749.7,0.55]
[1740024770270,6.2026,2750.2,2749.7,0.55]
[1740024773201,9.83874,2750.2,2749.7,0.55]
[1740024773402,6.2026,2750.2,2749.7,4.18673]
[1740024774763,6.2026,2750.2,2749.7,0.55]
[1740024774963,6.2026,2750.2,2749.7,4.18673]
[1740024776613,6.2026,2750.2,2749.7,7.8234]
[1740024776898,5.39,2750.2,2750.0,3.63635]
[1740024777986,5.39,2750.2,2750.1,3.63623]
[1740024778549,5.39,2750.2,2749.9,3.63648]
[1740024778955,5.39,2750.2,2749.8,4.41125]
[1740024779156,5.39,2750.2,2749.9,3.63648]
[1740024780369,9.02572,2750.5,2749.9,3.63648]
[1740024780887,5.39,2750.5,2750.0,0.55]
[1740024781080,5.39,2750.5,2750.1,3.63621]
[1740024781465,5.39,2750.5,2750.1,3.63614]
[1740024786195,9.02582,2750.5,2749.9,0.94062]
[1740024786361,4.40283,2750.4,2749.7,3.89674]
[1740024786705,3.63597,2750.3,2749.8,0.22688493]
[1740024786907,4.40283,2750.4,2749.8,3.86348493]
[1740024787108,8.03874,2750.4,2749.8,0.22688493]
[1740024787311,8.03874,2750.4,2749.9,3.63646]
[1740024787312,0.767,2750.4,2749.9,3.63646]
[1740024788312,3.636,2750.3,2749.8,0.22688493]
[1740024788530,3.636,2750.3,2749.8,3.86341493]
[1740024788835,3.636,2750.3,2749.8,3.63653]
[1740024789490,0.767,2750.4,2749.8,3.63653]
[1740024789683,4.93875031,2750.4,2749.8,3.63653]
[1740024789936,3.63597,2750.3,2749.7,3.89666]
[1740024790690,3.63597,2750.3,2749.7,7.53333]
[1740024791089,1.30290031,2750.4,2749.8,3.63661]
[1740024791416,4.93875031,2750.4,2749.7,3.89666]
[1740024791618,3.63602,2750.3,2749.7,3.89666]
[1740024791823,4.93875031,2750.4,2749.7,7.53333]
[1740024792138,8.57470031,2750.4,2749.7,3.89666]
[1740024792283,13.96470031,2750.4,2749.7,3.89666]
[1740024792490,13.96470031,2750.4,2749.7,7.53334]
[1740024793012,3.63598,2750.3,2749.7,3.89666]
[1740024793340,3.63598,2750.3,2749.8,0.22690252]
[1740024793920,10.32875031,2750.4,2749.8,3.86351252]
[1740024793921,6.69290031,2750.4,2749.8,3.86351252]
[1740024794525,6.69290031,2750.4,2749.8,3.63661]
[1740024794923,6.157,2750.4,2749.9,3.63646]
[1740024795804,9.79287,2750.4,2749.9,3.63646]
[1740024796923,3.636,2750.3,2749.7,3.89666]
[1740024797125,9.79287,2750.4,2749.7,3.89666]
[1740024797819,9.79287,2750.4,2749.8,0.22690955]
[1740024798019,0.979287,2750.3,2749.8,0.22690955]
[1740024798224,9.79287,2750.4,2749.8,3.86345955]
[1740024798939,3.63597,2750.3,2749.9,0.22690955]
[1740024799430,9.79287,2750.4,2749.9,0.22690955]
[1740024799929,3.636,2750.3,2749.9,0.22690955]
[1740024800139,3.636,2750.3,2749.7,7.53348]
[1740024800307,3.636,2750.3,2749.7,4.783138]
[1740024800507,3.636,2750.3,2749.7,3.89674]
[1740024800913,3.636,2750.3,2749.7,7.53342]
[1740024801319,3.636,2750.3,2749.8,3.63662]
[1740024801837,3.636,2750.3,2749.8,3.86354179]
[1740024803035,3.636,2750.3,2749.9,0.22692179]
[1740024804530,3.636,2750.3,2749.7,3.89668]
[1740024805036,3.636,2750.3,2749.7,7.53335]
[1740024805435,3.636,2750.3,2749.8,3.63662]
[1740024805635,3.636,2750.3,2749.8,3.86352993]
[1740024806653,9.79286,2750.4,2749.8,3.86352993]
[1740024806859,6.157,2750.4,2749.8,0.22690993]
[1740024807148,6.157,2750.4,2749.9,3.86336993]
[1740024807953,9.79284,2750.4,2749.9,3.86336993]
[1740024808550,9.79284,2750.4,2749.9,3.63646]
[1740024809960,3.63599,2750.3,2749.7,7.53334]
[1740024810258,9.79285,2750.4,2749.8,3.63653]
[1740024812056,9.79285,2750.4,2749.9,0.22687966]
[1740024812805,9.79285,2750.4,2749.9,3.86331966]
[1740024814026,9.79285,2750.4,2749.9,3.63644]
[1740024815976,9.79285,2750.4,2749.7,4.783054]
[1740024816277,9.79285,2750.4,2749.8,3.63651]
[1740024816670,9.79285,2750.4,2749.8,3.86353875]
[1740024816875,9.79285,2750.4,2749.8,0.22702875]
[1740024817777,9.79285,2750.4,2749.9,0.22702875]
[1740024819591,9.79285,2750.4,2750.0,0.22702875]
[1740024819793,6.157,2750.4,2750.0,0.22702875]
[1740024820596,6.157,2750.4,2750.0,3.86338875]
[1740024821094,6.157,2750.4,2750.0,3.63636]
[1740024822182,5.39,2750.4,2750.1,3.63614]
[1740024822503,5.39,2750.4,2750.3,0.7902]
[1740024824800,5.39,2750.4,2750.3,4.42616]
[1740024828005,5.39,2750.7,2750.3,4.42608]
[1740024828202,6.1644,2751.0,2750.6,3.63545]
[1740024828570,0.8023,2750.7,2750.1,0.7781]
[1740024828803,1.32280745,2750.6,2750.0,3.8963]
[1740024829105,1.32280745,2750.6,2750.2,3.636]
[1740024829301,0.8023,2750.7,2750.2,3.636]
[1740024829602,0.8023,2750.7,2750.3,0.8121]
[1740024830112,4.43776,2750.7,2750.3,0.8121]
[1740024830406,4.95837745,2750.6,2750.2,0.22673982]
[1740024830611,4.95837745,2750.6,2750.1,0.8121]
[1740024831711,4.95837745,2750.6,2750.0,3.63629]
[1740024833817,10.34837745,2750.6,2750.0,3.63629]
[1740024835284,6.71280745,2750.6,2750.0,3.63629]
[1740024835615,10.34840745,2750.6,2750.0,3.63629]
[1740024835790,10.34840745,2750.6,2750.0,4.4978]
[1740024835987,6.71280745,2750.6,2750.0,4.4978]
[1740024836194,6.71280745,2750.6,2750.1,3.63619]
[1740024837211,10.34838745,2750.6,2750.0,4.4978]
[1740024840108,10.34838745,2750.6,2750.1,3.6362]
[1740024840415,10.34838745,2750.6,2750.0,4.4978]
[1740024840999,10.34838745,2750.6,2750.0,4.49779]
[1740024841198,10.34838745,2750.6,2750.1,0.22669195]
[1740024841399,10.34838745,2750.6,2750.1,3.86290195]
[1740024842219,6.71280745,2750.6,2750.1,3.86290195]
[1740024842417,5.39,2750.6,2750.2,3.63606]
[1740024842718,5.39,2750.6,2750.2,3.63602]
[1740024843685,5.39,2750.6,2750.1,3.63622]
[1740024844023,5.39,2750.6,2750.2,3.63607]
[1740024844989,5.39,2750.6,2750.4,3.63575]
[1740024845189,5.39,2750.6,2750.5,3.6357]
[1740024845615,5.39,2750.6,2750.5,4.1857]
[1740024845791,6.2024,2751.1,2750.7,3.63539]
[1740024846105,6.2024,2751.1,2750.7,4.39939]
[1740024846422,6.2024,2751.1,2750.6,0.55]
[1740024849532,9.83731,2751.1,2750.6,0.55]
[1740024850335,9.83731,2751.1,2750.6,4.18556]
[1740024850705,6.2024,2751.1,2750.7,3.63542]
[1740024851830,5.39,2751.1,2750.7,4.493923]
[1740024852128,5.39,2751.1,2750.8,4.38799]
[1740024852541,5.39,2751.1,2750.8,0.7527]
[1740024852898,5.39,2751.1,2750.9,3.63509]
[1740024853115,5.39,2751.1,2750.8,0.7527]
[1740024853441,5.39,2751.1,2750.9,3.63514]
[1740024854344,5.39,2751.1,2751.0,3.63504]
[1740024855695,5.39,2751.1,2751.0,4.46224]
[1740024856597,5.39,2751.1,2751.0,0.8272]
[1740024857207,5.39,2751.1,2751.0,4.46224]
[1740024857443,5.39,2751.1,2751.0,5.32995193]
[1740024857631,9.84128,2751.5,2751.0,5.32995193]
[1740024858146,9.84128,2751.5,2751.0,5.32987193]
[1740024859348,1.32280745,2751.4,2751.0,1.69491193]
[1740024859649,1.32280745,2751.4,2751.0,0.8272]
[1740024860649,1.32280745,2751.4,2750.8,5.0231793]
[1740024861865,4.95733745,2751.4,2750.8,5.0231793]
[1740024862029,1.32280745,2751.4,2750.8,8.6583893]
[1740024862359,1.32280745,2751.4,2750.9,3.63514]
[1740024862954,4.95740745,2751.4,2750.8,1.3879693]
[1740024863264,3.63468,2751.3,2750.8,5.0232693]
[1740024863873,3.63468,2751.3,2750.8,1.3879693]
[1740024864051,3.63468,2751.3,2750.8,0.8083]
[1740024865665,1.32280745,2751.4,2750.9,3.63515]
[1740024866531,4.95734745,2751.4,2750.8,0.8083]
[1740024866732,1.32280745,2751.2,2750.8,0.8083]
[1740024867259,1.32280745,2751.2,2750.8,4.44351]
[1740024867490,1.32280745,2751.2,2750.8,5.306394]
[1740024867615,1.32280745,2751.2,2750.8,1.671184]
[1740024867966,1.32280745,2751.2,2750.8,5.306474]
[1740024868421,1.32280745,2751.2,2750.8,1.671184]
[1740024868617,1.32280745,2751.2,2750.8,0.8083]
[1740024868950,4.95757745,2751.2,2750.8,0.8083]
[1740024869150,1.32280745,2751.2,2750.8,0.8083]
[1740024869453,2.10410745,2751.2,2750.6,4.95175]
[1740024869826,1.32280745,2751.0,2750.6,1.3162]
[1740024870027,1.32280745,2751.0,2750.5,3.63562]
[1740024870227,1.32280745,2751.0,2750.4,3.7662]
[1740024870444,1.32280745,2751.0,2750.4,4.895993]
[1740024871054,1.32280745,2751.0,2750.5,0.55]
[1740024871261,1.32280745,2751.0,2750.5,4.18568]
[1740024872356,1.32280745,2751.0,2750.5,7.82129]